bitfinex-derivatives/quotes_ETHF0:USTF0_20250730
["timestamp","ask_amount","ask_price","bid_price","bid_amount"]
[1753897334653,42.6723,3815.3,3815.2,20.0773]
[1753897334959,1.4086,3815.6,3815.5,0.5701]
[1753897335265,2.3212,3815.6,3815.5,20.0673]
[1753897335464,43.1212,3815.6,3815.5,20.0673]
[1753897335960,42.2875,3815.6,3815.5,20.0673]
[1753897336163,41.7365,3815.6,3815.5,20.0673]
[1753897337060,42.2875,3815.6,3815.5,20.0673]
[1753897337253,40.8,3815.6,3815.5,20.0673]
[1753897337454,2.21163,3815.9,3815.8,2.56144]
[1753897337756,2.0723,3815.9,3815.8,20.0613]
[1753897338767,2.5212,3815.9,3815.8,20.0613]
[1753897341863,2.1596,3815.9,3815.8,20.0613]
[1753897342166,2.5212,3815.9,3815.8,20.0613]
[1753897342769,0.2,3815.9,3815.8,19.3873]
[1753897343068,1.7701,3815.9,3815.8,20.0613]
[1753897343462,0.8575,3815.9,3815.8,20.0613]
[1753897343663,1.4085,3815.9,3815.8,20.0613]
[1753897344067,1.0237,3815.9,3815.8,20.0613]
[1753897344564,1.3853,3815.9,3815.8,20.0613]
[1753897344866,0.2,3815.9,3815.8,23.2691]
[1753897345270,2.5212,3815.9,3815.8,23.2491]
[1753897345567,2.5212,3815.9,3815.8,22.9771]
[1753897345766,2.5212,3815.9,3815.8,23.2491]
[1753897350768,1.1365,3815.9,3815.3,0.52419]
[1753897350974,2.2546,3815.5,3815.4,18.5655]
[1753897351171,2.2546,3815.5,3815.4,23.2487]
[1753897351675,0.8575,3815.5,3815.4,20.0409]
[1753897351871,1.519,3815.5,3815.4,20.0409]
[1753897352075,2.2546,3815.5,3815.4,20.0409]
[1753897352278,2.2546,3815.5,3815.4,20.0399]
[1753897352775,2.4796,3815.4,3815.3,0.2656]
[1753897352972,2.2546,3815.4,3815.3,20.0409]
[1753897353173,2.2546,3815.4,3815.3,23.2467]
[1753897353373,2.2546,3815.4,3815.3,5.2247]
[1753897353574,2.2546,3815.4,3815.3,23.2527]
[1753897353976,2.2546,3815.4,3815.3,19.7794]
[1753897354779,2.2546,3815.4,3815.3,20.0429]
[1753897354976,1.4126,3815.4,3815.3,20.0429]
[1753897355176,0.92977,3815.6,3815.4,0.52419]
[1753897355380,0.92977,3815.6,3815.5,20.0429]
[1753897355381,2.77877,3815.6,3815.5,20.0429]
[1753897355674,3.58417688,3815.6,3815.5,20.0429]
[1753897355872,3.06000688,3815.6,3815.5,20.0429]
[1753897356279,2.21890548,3815.6,3815.5,20.0429]
[1753897356779,3.06090548,3815.6,3815.5,20.0429]
[1753897361077,2.77878,3815.5,3815.4,0.52419]
[1753897361382,2.24098548,3815.5,3815.4,18.53719]
[1753897361579,3.5857899,3815.5,3815.4,0.52419]
[1753897361780,3.5857899,3815.5,3815.4,18.53319]
[1753897362181,2.2196099,3815.5,3815.1,0.4268]
[1753897362379,2.2546,3815.1,3815.0,0.52424]
[1753897362580,3.0616099,3815.1,3815.0,18.53424]
[1753897362879,43.8616099,3815.1,3815.0,0.52424]
[1753897363076,0.5243,3814.7,3814.5,3.73211]
[1753897363281,2.2546,3814.6,3814.5,3.99771]
[1753897363482,2.2546,3814.6,3814.5,22.31361]
[1753897363681,2.2546,3814.6,3814.5,23.09181]
[1753897363882,1.7525,3815.0,3814.9,1.70416]
[1753897364082,2.55999968,3815.0,3814.9,2.53666]
[1753897364585,3.06209968,3815.0,3814.9,2.53666]
[1753897366678,0.80749968,3815.0,3814.9,1.52056]
[1753897366885,3.06209968,3815.0,3814.9,2.53666]
[1753897367492,0.80749968,3815.0,3814.9,2.53666]
[1753897367989,0.80749968,3815.0,3814.9,5.74446]
[1753897368591,1.30959968,3815.0,3814.9,5.74446]
[1753897368793,0.80749968,3815.0,3814.9,5.74446]
[1753897368985,0.5021,3815.6,3814.9,5.74446]
[1753897368986,2.2546,3815.5,3815.4,2.10979]
[1753897369187,3.06146551,3815.5,3815.4,20.54059]
[1753897369494,43.86146551,3815.5,3815.4,20.54059]
[1753897370790,43.86146551,3815.5,3815.4,19.52449]
[1753897370989,43.86146551,3815.5,3815.4,19.09769]
[1753897371791,43.86146551,3815.5,3815.4,18.004]
[1753897372701,0.52419,3815.4,3815.3,0.52419]
[1753897372903,3.58565551,3815.4,3815.3,18.52519]
[1753897373400,2.77879,3815.4,3815.3,0.52419]
[1753897373600,2.77879,3815.4,3815.2,0.52421]
[1753897373601,0.9105,3815.3,3815.2,0.52421]
[1753897373801,2.2546,3815.3,3815.2,19.51951]
[1753897375895,0.52422,3815.2,3814.7,4.51852]
[1753897376100,2.77884,3815.1,3815.0,0.52424]
[1753897376595,2.2546,3815.1,3815.0,0.52424]
[1753897377095,2.2546,3815.1,3815.0,2.27764]
[1753897377300,2.2546,3815.1,3815.0,2.53664]
[1753897381602,2.2546,3815.1,3815.0,2.27764]
[1753897381809,2.2546,3815.1,3815.0,1.09374]
[1753897382009,2.2546,3815.1,3815.0,18.52224]
[1753897382903,2.2546,3815.1,3815.0,0.52424]
[1753897383107,1.88187,3814.8,3814.3,3.2078]
[1753897383410,1.31052,3815.3,3814.3,3.99784]
[1753897383411,2.2492,3814.4,3814.3,3.99784]
[1753897383603,2.2492,3814.4,3814.3,21.99584]
[1753897384105,2.2492,3814.4,3814.3,22.73984]
[1753897384602,2.2492,3814.4,3814.3,22.28754]
[1753897385107,0.95194,3814.3,3814.1,0.52436]
[1753897385313,2.2492,3814.2,3814.1,0.52436]
[1753897385610,43.0492,3814.2,3814.1,0.52436]
[1753897386117,2.2492,3814.1,3814.0,21.2058]
[1753897386411,2.2492,3814.1,3814.0,17.998]
[1753897386607,0.93,3814.1,3813.7,0.8495]
[1753897386815,0.93,3813.9,3813.8,18.7881]
[1753897387007,0.93,3813.9,3813.5,3.6601]
[1753897387008,1.45441,3813.9,3813.5,3.6601]
[1753897387313,2.2492,3813.6,3813.5,4.74195]
[1753897387516,2.2492,3813.6,3813.5,22.74195]
[1753897388410,2.2492,3813.6,3813.5,5.71375]
[1753897388621,2.2492,3813.6,3813.5,23.71375]
[1753897391216,2.2492,3813.6,3813.5,4.28965]
[1753897391414,2.2492,3813.6,3813.5,22.74295]
[1753897392624,2.2492,3813.6,3813.5,23.14015]
[1753897393018,2.2492,3813.6,3813.5,5.13915]
[1753897393220,2.2492,3813.6,3813.5,23.14015]
[1753897394127,2.2492,3813.6,3813.5,21.73325]
[1753897394323,2.2492,3813.6,3813.5,21.2088]
[1753897395822,2.2492,3813.6,3813.5,18.001]
[1753897396519,0.93,3813.4,3813.3,0.79018]
[1753897396721,2.2492,3813.4,3813.3,19.24348]
[1753897397226,1.18636,3813.5,3813.4,1.08186]
[1753897397531,2.77366,3813.5,3813.4,1.86426]
[1753897398232,0.93,3812.9,3812.8,1.53425]
[1753897398442,2.2492,3812.9,3812.8,2.50605]
[1753897398733,2.2492,3812.9,3812.8,20.50805]
[1753897401727,1.7352,3813.2,3813.1,1.86431]
[1753897401928,1.7352,3813.2,3813.1,2.50601]
[1753897402329,2.2492,3813.2,3813.1,2.50601]
[1753897405826,2.2492,3813.2,3813.1,2.26151]
[1753897406632,2.2492,3813.2,3813.1,1.08191]
[1753897406828,2.2492,3813.2,3813.1,0.52451]
[1753897407827,2.2492,3813.2,3813.1,1.08191]
[1753897408134,2.2492,3813.2,3813.1,2.50601]
[1753897411539,2.2492,3813.2,3813.1,0.52451]
[1753897412133,2.2492,3813.2,3813.1,4.72961]
[1753897412332,2.2492,3813.2,3813.1,5.34021]
[1753897412532,0.8719,3813.2,3813.1,5.67121]
[1753897412832,0.514,3813.2,3813.1,5.67121]
[1753897413327,0.8806,3813.2,3813.1,5.67121]
[1753897414642,0.8806,3813.2,3813.1,23.67521]
[1753897415334,41.2959,3813.4,3813.3,2.46338]
[1753897415540,41.6625,3813.4,3813.3,2.46338]
[1753897415730,42.0887,3813.4,3813.3,2.46338]
[1753897416134,41.2959,3813.4,3813.3,2.46338]
[1753897416331,40.8,3813.4,3813.3,2.46338]
[1753897416840,41.2959,3813.4,3813.3,2.46338]
[1753897417543,41.6625,3813.4,3813.3,2.46338]
[1753897419038,40.8,3813.4,3813.3,2.46338]
[1753897419838,0.4959,3813.6,3813.5,0.82625]
[1753897420038,0.8625,3813.6,3813.5,5.67115]
[1753897420438,41.6625,3813.6,3813.5,5.67115]
[1753897420842,42.0887,3813.6,3813.5,5.67115]
[1753897421434,41.2959,3813.6,3813.5,5.67115]
[1753897421640,42.0887,3813.6,3813.5,5.67115]
[1753897422247,0.4959,3813.6,3813.5,5.67115]
[1753897422740,0.8625,3813.6,3813.5,5.67115]
[1753897424847,1.1953,3813.6,3813.5,5.67115]
[1753897425250,58.802,3814.1,3814.0,0.52438]
[1753897425446,42.0887,3814.1,3814.0,0.52438]
[1753897425755,42.0887,3814.1,3814.0,1.52168]
[1753897426043,42.0887,3814.1,3814.0,4.72948]
[1753897426242,0.7928,3814.4,3814.2,0.4516]
[1753897426446,1.2514,3814.3,3814.2,2.45406]
[1753897427049,2.1735,3814.3,3814.2,2.45406]
[1753897428042,1.7473,3814.3,3814.2,2.45406]
[1753897428247,0.6994,3814.5,3814.4,0.82613]
[1753897428456,2.1735,3814.5,3814.4,2.45403]
[1753897430647,2.1735,3814.5,3814.4,5.66183]
[1753897432651,20.1715,3815.0,3814.9,2.06906]
[1753897432851,42.9735,3815.0,3814.9,2.06906]
[1753897433053,42.9735,3815.0,3814.9,1.06996]
[1753897433353,0.552,3814.8,3814.7,0.97588]
[1753897433554,0.8848,3814.8,3814.7,0.97588]
[1753897433755,2.1735,3814.8,3814.7,0.97588]
[1753897434151,2.1735,3814.8,3814.7,0.52428]
[1753897435056,2.1735,3814.8,3814.7,2.06908]
[1753897435262,2.1735,3814.8,3814.7,2.45398]
[1753897435749,0.8287,3814.8,3814.7,2.45398]
[1753897435962,42.0887,3815.0,3814.9,2.45396]
[1753897436155,0.4262,3815.3,3815.2,0.52422]
[1753897436457,2.1735,3815.3,3815.2,23.65672]
[1753897437053,1.7473,3815.3,3815.2,23.65672]
[1753897437252,1.4445,3815.3,3815.2,23.65672]
[1753897438462,2.1735,3815.6,3815.5,2.45388]
[1753897438755,2.1735,3815.6,3815.5,20.44688]
[1753897439161,2.1735,3815.6,3815.5,17.993]
[1753897439757,2.1735,3815.6,3815.5,18.2301]
[1753897439963,2.1735,3815.6,3815.5,18.9505]
[1753897440460,2.1735,3815.6,3815.5,19.8426]
[1753897440658,1.7473,3815.6,3815.5,19.6353]
[1753897440860,1.7473,3815.6,3815.5,19.8426]
[1753897441059,2.1906,3815.6,3815.5,19.8426]
[1753897444158,2.1906,3815.6,3815.5,1.8496]
[1753897444355,2.1906,3815.6,3815.5,19.6333]
[1753897444560,1.7613,3815.6,3815.5,19.8406]
[1753897444759,2.2046,3815.6,3815.5,19.8406]
[1753897445471,0.3089,3815.5,3815.4,0.52418]
[1753897445761,0.9094,3815.5,3815.3,0.5242]
[1753897445955,2.2207,3815.3,3815.2,0.52421]
[1753897446159,2.2207,3815.3,3815.2,18.51321]
[1753897447459,3.2078,3815.7,3814.8,0.52426]
[1753897447460,0.52427,3814.9,3814.8,0.52426]
[1753897447665,2.74497,3814.9,3814.8,18.51326]
[1753897448065,2.2207,3814.9,3814.8,18.51326]
[1753897448266,2.2207,3814.9,3814.8,18.75036]
[1753897448466,2.2207,3814.9,3814.8,1.48176]
[1753897448666,2.2207,3814.9,3814.8,19.03656]
[1753897449063,2.2207,3814.9,3814.8,18.51326]
[1753897451072,2.2207,3814.9,3814.8,0.52426]
[1753897451272,2.2207,3814.9,3814.8,18.51226]
[1753897451462,0.52427,3814.8,3814.6,3.2078]
[1753897451668,0.9094,3814.7,3814.3,37.76]
[1753897451868,0.9094,3814.5,3814.4,19.18363]
[1753897452068,2.2207,3814.5,3814.4,19.46983]
[1753897452476,2.2207,3814.5,3814.4,19.03563]
[1753897453876,2.2207,3814.5,3814.4,19.46983]
[1753897454373,2.2207,3814.5,3814.4,20.36193]
[1753897454971,2.2207,3814.5,3814.4,20.15463]
[1753897455571,2.2207,3814.5,3814.4,18.51233]
[1753897455769,2.2207,3814.5,3814.4,19.46983]
[1753897455973,41.2935,3814.7,3814.6,1.7324]
[1753897456272,42.1113,3814.7,3814.6,20.3619]
[1753897458269,42.1113,3814.7,3814.6,19.0356]
[1753897458483,42.1113,3814.7,3814.6,19.4698]
[1753897458677,40.8,3814.7,3814.6,0.5243]
[1753897458875,41.7368,3814.7,3814.6,2.3739]
[1753897459080,42.1113,3814.7,3814.6,2.3739]
[1753897459974,42.1113,3814.7,3814.6,2.1666]
[1753897460165,42.1113,3814.7,3814.6,1.8054]
[1753897461273,42.1113,3814.7,3814.6,0.5243]
[1753897462876,42.1113,3814.7,3814.6,0.9585]
[1753897463476,42.1113,3814.7,3814.6,1.1956]
[1753897464278,42.1113,3814.7,3814.6,0.7614]
[1753897464678,42.1113,3814.7,3814.6,1.4818]
[1753897465182,42.1113,3814.7,3814.6,1.843]
[1753897466079,2.2207,3814.7,3814.6,1.843]
[1753897467384,2.2207,3814.9,3814.8,1.8496]
[1753897467779,2.2207,3814.9,3814.8,1.6423]
[1753897467976,2.2207,3814.9,3814.7,18.51028]
[1753897468181,2.2207,3814.8,3814.7,18.94448]
[1753897468382,2.2207,3814.8,3814.7,19.46778]
[1753897469881,2.2207,3814.8,3814.7,19.82968]
[1753897470882,2.2207,3814.8,3814.7,19.46778]
[1753897471580,2.2207,3814.8,3814.7,1.48178]
[1753897471781,2.2207,3814.8,3814.7,19.46678]
[1753897472486,2.2207,3814.8,3814.7,20.32068]
[1753897473176,2.2207,3814.8,3814.7,17.985]
[1753897473379,0.2887,3814.0,3813.9,0.6636]
[1753897473579,2.1618,3814.0,3813.9,19.6501]
[1753897473979,2.1618,3814.0,3813.9,19.8393]
[1753897474177,40.8,3814.3,3814.2,0.8617]
[1753897474378,40.8,3814.3,3814.2,19.8393]
[1753897474684,2.68611,3814.6,3814.5,1.8553]
[1753897475079,43.48611,3814.6,3814.5,1.8553]
[1753897475480,2.68611,3814.6,3814.5,1.8553]
[1753897476378,2.68611,3814.6,3814.1,3.2078]
[1753897476379,1.37888,3814.1,3814.0,1.08327]
[1753897476581,1.37888,3814.1,3814.0,19.50977]
[1753897476780,1.37888,3814.1,3814.0,20.36367]
[1753897476977,2.68618,3814.1,3814.0,20.36367]
[1753897477285,2.68618,3814.1,3814.0,19.8393]
[1753897477483,2.68618,3814.1,3814.0,1.8553]
[1753897477683,2.68618,3814.1,3814.0,19.8393]
[1753897477883,2.1618,3814.1,3814.0,19.8393]
[1753897479484,2.1618,3814.1,3814.0,19.8383]
[1753897479783,2.1618,3814.1,3814.0,18.5419]
[1753897479976,2.1618,3814.1,3814.0,0.5589]
[1753897480285,2.1618,3813.9,3813.8,1.3633]
[1753897480478,2.1618,3813.9,3813.8,19.3463]
[1753897480987,2.1618,3813.9,3813.8,19.5355]
[1753897481184,2.1618,3813.9,3813.8,19.8383]
[1753897483186,2.1618,3813.9,3813.8,18.9844]
[1753897483480,2.1618,3813.9,3813.8,17.983]
[1753897483684,1.37898,3813.4,3813.3,1.08337]
[1753897483887,1.37898,3813.4,3813.3,19.87077]
[1753897484283,2.68628,3813.4,3813.3,19.87077]
[1753897485389,2.68628,3813.4,3813.3,18.5429]
[1753897485577,2.6863,3813.1,3813.0,1.0014]
[1753897485883,2.6863,3813.1,3813.0,0.5589]
[1753897486088,2.6863,3813.1,3813.0,18.5429]
[1753897486283,2.6863,3813.1,3813.0,18.9854]
[1753897486683,2.6863,3813.1,3813.0,19.3473]
[1753897486881,0.8478,3813.0,3812.6,3.2078]
[1753897487187,2.1618,3813.0,3812.9,1.8553]
[1753897487388,2.1618,3813.0,3812.9,19.8393]
[1753897488386,1.7023,3813.0,3812.9,19.8393]
[1753897490485,2.1618,3813.0,3812.9,20.36383]
[1753897490990,2.1618,3813.0,3812.9,20.17463]
[1753897491383,2.1618,3813.0,3812.9,20.35073]
[1753897492488,2.1618,3813.0,3812.9,20.17463]
[1753897494490,2.1618,3813.0,3812.9,20.35073]
[1753897495981,2.1618,3813.0,3812.9,1.8422]
[1753897496185,2.1618,3813.0,3812.9,19.8262]
[1753897496792,2.1618,3812.9,3812.8,0.5589]
[1753897497091,2.1618,3812.9,3812.8,18.9854]
[1753897497292,2.1618,3812.9,3812.8,19.8052]
[1753897497490,2.1618,3812.9,3812.8,18.9854]
[1753897497689,2.1618,3812.9,3812.8,19.3473]
[1753897497886,2.1618,3812.9,3812.8,19.8052]
[1753897498085,2.68633,3812.9,3812.8,19.8052]
[1753897498990,2.1618,3812.9,3812.8,19.8052]
[1753897501292,2.28996,3813.4,3813.3,1.591]
[1753897501598,2.63466,3813.4,3813.3,1.7624]
[1753897501793,2.63466,3813.4,3813.3,1.3167]
[1753897501990,2.63466,3813.4,3813.3,0.961]
[1753897502195,2.1102,3813.4,3813.3,1.48546]
[1753897502999,2.1102,3813.4,3813.3,1.84116]
[1753897503900,2.1102,3813.4,3813.3,1.3167]
[1753897504603,2.1102,3813.4,3813.3,0.961]
[1753897505195,2.1102,3813.4,3813.3,0.5151]
[1753897506307,2.1102,3813.4,3813.3,0.961]
[1753897509702,0.4369,3813.1,3813.0,3.2078]
[1753897510003,2.1102,3813.1,3813.0,4.25]
[1753897510204,2.1102,3813.1,3813.0,4.5243]
[1753897510499,2.1102,3813.1,3813.0,4.9702]
[1753897511007,2.63471,3813.1,3813.0,1.7624]
[1753897511803,2.63471,3813.1,3813.0,1.3167]
[1753897512004,2.63471,3813.1,3813.0,1.7624]
[1753897512904,2.63471,3813.1,3813.0,0.232]
[1753897513103,1.31118,3813.4,3812.6,3.2078]
[1753897513104,0.52456,3812.7,3812.6,3.2078]
[1753897513402,1.85322,3812.3,3812.2,0.961]
[1753897513605,2.19792,3812.3,3812.2,1.3167]
[1753897513908,2.1102,3812.3,3812.2,1.7624]
[1753897514109,1.6733,3812.3,3812.2,1.7624]
[1753897514405,2.1102,3812.3,3812.2,1.7624]
[1753897515408,21.1888,3813.0,3812.4,0.7894]
[1753897515409,3.6872,3813.0,3812.4,0.7894]
[1753897515609,5.84252,3813.0,3812.9,1.4881]
[1753897515807,6.64800843,3813.0,3812.9,1.7624]
[1753897516308,6.64800843,3813.0,3812.9,1.591]
[1753897516909,6.64800843,3813.0,3812.9,0.961]
[1753897517309,5.84252,3813.0,3812.9,0.961]
[1753897518209,5.84252,3813.0,3812.9,0.5151]
[1753897518412,1.37375,3812.8,3812.7,1.0422]
[1753897518711,2.63475,3812.8,3812.7,1.3167]
[1753897520203,2.63475,3812.8,3812.7,1.7624]
[1753897521315,2.63475,3812.8,3812.7,1.591]
[1753897523110,0.5246,3812.4,3812.3,17.981]
[1753897523311,1.09033,3812.2,3812.1,3.2078]
[1753897523517,2.63483,3812.2,3812.1,4.9702]
[1753897523913,2.63483,3812.2,3812.1,1.7624]
[1753897525114,2.63483,3812.2,3812.1,1.2353]
[1753897525512,2.1102,3811.9,3811.8,1.86391146]
[1753897525715,2.1102,3811.9,3811.8,2.03531146]
[1753897525915,2.1102,3811.9,3811.8,1.51063146]
[1753897526116,2.1102,3811.9,3811.8,1.95653146]
[1753897527923,2.1102,3811.9,3811.8,1.78513146]
[1753897528121,2.1102,3811.9,3811.8,1.95653146]
[1753897528523,2.1102,3811.9,3811.8,0.19413146]
[1753897529030,0.3312,3811.4,3811.3,0.4515]
[1753897529220,0.8418,3811.4,3811.1,18.50477]
[1753897529527,2.21905,3811.3,3811.2,0.9767]
[1753897530023,2.67215,3811.3,3811.2,0.9767]
[1753897530224,2.1474,3811.3,3811.2,1.7287]
[1753897531823,2.67216,3811.3,3811.1,0.52477]
[1753897532124,1.36659,3811.1,3811.0,1.40169]
[1753897532326,1.36659,3811.1,3811.0,1.85319]
[1753897532519,2.1474,3811.1,3811.0,2.25349]
[1753897532719,2.1474,3811.1,3811.0,2.09949]
[1753897532918,2.1474,3811.1,3811.0,2.25349]
[1753897533419,1.2949,3811.5,3811.4,0.5252]
[1753897533628,1.2949,3811.5,3811.4,1.3284]
[1753897534030,2.1474,3811.5,3811.4,1.7287]
[1753897534935,1.6943,3811.5,3811.4,1.7287]
[1753897535133,2.1474,3811.5,3811.4,1.7287]
[1753897536636,2.1474,3811.5,3811.4,1.5747]
[1753897537832,2.1474,3811.5,3811.4,1.7287]
[1753897541930,1.4643,3811.7,3811.5,0.154]
[1753897542134,1.6943,3811.7,3811.6,1.223]
[1753897542335,1.6943,3811.7,3811.6,1.7287]
[1753897542336,0.8272,3811.7,3811.6,1.7287]
[1753897542533,0.496,3811.7,3811.6,1.7287]
[1753897543137,0.496,3811.7,3811.6,4.9365]
[1753897543537,0.8525,3811.7,3811.6,4.9365]
[1753897543736,1.4137,3811.7,3811.6,4.9365]
[1753897544037,1.8668,3811.7,3811.6,4.9365]
[1753897544240,2.1474,3811.7,3811.6,4.9365]
[1753897544641,1.6943,3811.7,3811.6,4.9365]
[1753897544835,0.496,3811.7,3811.6,4.9365]
[1753897545435,0.8096,3811.9,3811.7,0.5247]
[1753897545636,1.6514,3812.7,3812.6,1.1232]
[1753897545840,1.6514,3812.7,3812.6,1.7287]
[1753897545841,2.1474,3812.7,3812.6,1.7287]
[1753897551740,2.1474,3812.7,3811.8,3.2078]
[1753897551741,2.1474,3812.0,3811.8,3.2078]
[1753897551939,2.67207,3811.9,3811.7,0.52469]
[1753897552138,2.1474,3811.8,3811.7,1.50139]
[1753897553237,2.1474,3811.8,3811.7,0.52469]
[1753897553438,2.1474,3811.8,3811.7,0.75899]
[1753897553637,2.1474,3811.8,3811.7,1.50139]
[1753897553838,2.1474,3811.8,3811.7,1.3284]
[1753897554038,2.1474,3811.8,3811.7,1.5747]
[1753897554239,2.1474,3811.8,3811.7,1.7287]
[1753897556335,2.1474,3811.8,3811.4,3.2078]
[1753897556642,2.1474,3811.5,3811.4,4.1845]
[1753897557147,2.1474,3811.5,3811.4,4.5362]
[1753897557936,2.1474,3811.5,3811.4,3.2078]
[1753897558345,1.36658,3811.2,3811.1,0.52477]
[1753897558644,1.36658,3811.2,3811.1,1.48147]
[1753897559042,2.60518,3811.2,3811.1,1.82517]
[1753897559435,2.60518,3811.2,3811.1,1.3004]
[1753897559641,2.60518,3811.2,3811.0,3.73259]
[1753897559844,2.0795,3811.1,3811.0,3.73259]
[1753897560144,2.0795,3811.1,3811.0,4.68239]
[1753897560337,2.0795,3811.1,3811.0,5.02609]
[1753897560543,2.0795,3811.1,3811.0,4.1576]
[1753897561142,2.0795,3811.1,3811.0,3.2078]
[1753897561347,1.2637,3810.3,3810.1,3.2078]
[1753897561544,1.78865,3809.9,3809.3,3.2078]
[1753897561846,2.0795,3809.4,3809.3,3.2078]
[1753897562149,2.0654899,3809.4,3809.3,4.1576]
[1753897562443,2.0654899,3809.4,3809.3,4.3807]
[1753897562650,2.0654899,3809.4,3809.3,4.8638]
[1753897563041,0.4559,3809.8,3809.4,0.4315]
[1753897563244,41.68486,3809.9,3809.3,3.2078]
[1753897563245,0.525,3809.5,3809.3,3.2078]
[1753897563543,0.8409,3809.0,3808.9,1.47488]
[1753897563748,2.0795,3809.0,3808.9,1.47488]
[1753897564540,2.0795,3809.0,3808.9,2.04168]
[1753897564745,2.0795,3809.0,3808.9,2.18108]
[1753897566051,2.0795,3809.0,3808.9,2.04168]
[1753897566746,2.0795,3809.0,3808.9,0.52508]
[1753897567148,2.0795,3809.0,3808.9,2.18108]
[1753897567343,0.7624,3809.0,3808.9,2.18108]
[1753897567552,1.6236,3809.5,3809.4,1.1729]
[1753897567752,2.0795,3809.3,3809.2,0.52503]
[1753897568053,2.0795,3809.1,3809.0,0.52507]
[1753897569047,2.0795,3809.1,3809.0,1.47487]
[1753897569450,2.0795,3809.1,3809.0,1.81857]
[1753897569750,2.0795,3809.1,3809.0,0.80717]
[1753897570344,2.0795,3809.1,3809.0,0.52507]
[1753897570939,2.0795,3809.1,3808.8,3.2078]
[1753897570940,0.301,3809.0,3808.9,0.52507]
[1753897571248,2.0795,3809.0,3808.9,0.52507]
[1753897572847,2.0795,3809.0,3808.9,2.18107]
[1753897574245,2.0795,3809.0,3808.9,1.69797]
[1753897574446,0.3065,3809.1,3809.0,0.52507]
[1753897574654,2.0795,3809.1,3809.0,0.52507]
[1753897574853,2.0795,3809.1,3809.0,1.47487]
[1753897575558,2.0795,3809.1,3809.0,0.80717]
[1753897576151,2.0795,3809.1,3809.0,1.47487]
[1753897576454,2.0795,3808.9,3808.8,4.015]
[1753897576755,2.0795,3808.9,3808.8,4.6827]
[1753897577158,2.0795,3808.9,3808.8,5.0264]
[1753897578353,2.0795,3808.9,3808.8,1.8186]
[1753897578554,2.0795,3808.9,3808.8,1.4749]
[1753897578753,2.0795,3808.9,3808.8,2.1811]
[1753897579556,0.8409,3808.5,3808.4,4.8638]
[1753897579757,2.0795,3808.5,3808.4,4.8638]
[1753897580160,2.0795,3808.5,3808.4,5.38895]
[1753897580348,2.0795,3808.5,3808.4,4.90585]
[1753897580553,2.0795,3808.5,3808.4,5.24955]
[1753897580760,2.0795,3808.5,3808.4,5.38895]
[1753897581657,2.0795,3808.9,3808.8,1.26649]
[1753897581857,2.0795,3808.9,3808.8,1.0851]
[1753897582057,2.0795,3808.9,3808.4,3.2078]
[1753897582058,0.52514,3808.6,3808.4,3.2078]
[1753897582266,0.8409,3808.3,3808.2,1.04347]
[1753897582459,2.0795,3808.3,3808.2,1.47497]
[1753897582653,0.52518,3808.2,3808.1,0.52519]
[1753897582851,2.29818,3808.2,3808.1,0.52519]
[1753897583052,2.29818,3808.2,3807.8,0.19433539]
[1753897583053,0.52521,3808.0,3807.8,0.19433539]
[1753897583362,2.0795,3807.9,3807.8,0.19433539]
[1753897583558,2.0795,3807.9,3807.2,3.75149597]
[1753897583762,0.8409,3807.3,3807.2,3.74448597]
[1753897583963,2.0795,3807.3,3807.2,4.17598597]
[1753897584164,42.8795,3807.3,3807.2,4.17598597]
[1753897584560,2.0795,3807.3,3807.2,4.17598597]
[1753897584761,0.8409,3807.0,3806.9,1.04365]
[1753897584964,2.0795,3807.0,3806.9,1.61045]
[1753897585263,42.8795,3807.0,3806.9,1.74985]
[1753897585463,42.8795,3807.0,3806.9,2.18135]
[1753897585856,2.0795,3807.0,3806.9,2.18135]
[1753897586058,2.0795,3807.0,3806.9,1.5166]
[1753897586258,2.0795,3807.0,3806.9,1.2935]
[1753897586259,42.8795,3807.0,3806.9,1.2935]
[1753897586561,2.0795,3807.0,3806.9,1.656]
[1753897586861,42.8795,3807.0,3806.9,1.5166]
[1753897589465,42.8795,3807.0,3806.9,1.6994]
[1753897590066,42.4567,3807.0,3806.9,1.6994]
[1753897590567,42.9139,3807.0,3806.9,1.6994]
[1753897590765,40.8,3807.0,3806.9,1.6994]
[1753897590969,2.1887,3807.4,3807.3,1.35359]
[1753897591466,2.1887,3807.4,3807.3,1.99529]
[1753897591672,2.1887,3807.4,3807.3,2.37369]
[1753897592065,3.2078,3807.5,3807.3,2.37369]
[1753897592066,44.0078,3807.5,3807.3,2.37369]
[1753897592374,44.0078,3807.5,3807.4,1.8484]
[1753897592672,5.3965,3807.5,3807.4,1.8484]
[1753897592970,5.3965,3807.5,3807.4,0.9946]
[1753897593567,5.3965,3807.5,3807.4,1.2872]
[1753897594374,2.71403,3807.2,3807.1,1.51993]
[1753897594572,2.71403,3807.2,3807.1,0.9946]
[1753897594773,2.71403,3807.2,3807.1,0.5357]
[1753897596566,0.6236,3807.0,3806.7,0.52538]
[1753897596774,2.71406,3806.9,3806.8,0.9946]
[1753897596977,2.71406,3806.9,3806.8,1.8484]
[1753897598065,2.71406,3806.9,3806.8,1.2872]
[1753897598571,2.71406,3806.9,3806.8,0.9946]
[1753897599973,2.71406,3806.9,3806.6,0.3784]
[1753897599974,2.17281,3806.9,3806.2,3.5862]